bitfinex/quotes_ETHUSD_20220310
["timestamp","ask_amount","ask_price","bid_price","bid_amount"]
[1646922057693,0.00208404,2587.8,2587.1,0.0748197]
[1646922057942,1.60032204,2587.8,2587.2,0.461]
[1646922058139,3.47582604,2588.4,2587.3,3.9703509]
[1646922058140,0.00208404,2588.3,2587.3,3.9703509]
[1646922058343,0.00208404,2588.1,2587.9,1.01905264]
[1646922058539,6.93925746,2588.7,2587.9,1.31905264]
[1646922058540,0.00208404,2588.4,2587.9,1.31905264]
[1646922058739,0.00208404,2588.4,2588.0,0.08644678]
[1646922058740,1.60002395,2588.4,2588.0,0.08644678]
[1646922058941,1.60002395,2588.3,2588.0,0.08644678]
[1646922059142,0.98635746,2588.7,2588.0,0.08644678]
[1646922059143,1.60002395,2588.2,2588.0,0.08644678]
[1646922059343,1.60002395,2588.1,2588.0,0.08644678]
[1646922059744,1.60002395,2588.6,2588.0,0.08875731]
[1646922059947,1.60002395,2588.5,2588.0,0.08875731]
[1646922060144,1.60002395,2588.4,2588.0,0.08875731]
[1646922060345,0.3875,2588.6,2588.0,0.08875731]
[1646922060346,1.60002395,2588.3,2588.0,0.08875731]
[1646922060547,1.60002395,2588.2,2588.0,0.08875731]
[1646922060745,1.98752395,2588.4,2587.8,0.3]
[1646922060948,1.60002395,2588.3,2588.1,0.00270984]
[1646922061348,2.60002395,2588.3,2588.1,0.00270984]
[1646922061583,1.60002395,2588.2,2588.1,0.00270984]
[1646922061782,1.60002395,2588.2,2588.0,2.22789087]
[1646922061985,1.60002395,2588.2,2588.1,0.07621162]
[1646922062182,1.60002395,2588.2,2588.1,0.07892146]
[1646922062986,0.89602604,2588.7,2588.1,0.07892146]
[1646922062987,1.60002395,2588.6,2588.1,0.07621162]
[1646922063188,1.60002395,2588.5,2588.1,0.07621162]
[1646922063392,1.60002395,2588.4,2588.1,0.07621162]
[1646922063590,1.70302604,2588.7,2588.1,0.07621162]
[1646922063591,1.60002395,2588.3,2588.1,0.07621162]
[1646922063790,1.60002395,2588.2,2588.1,0.07621162]
[1646922063991,1.60002395,2588.6,2588.1,0.07621162]
[1646922064290,1.96671,2588.5,2588.1,0.07621162]
[1646922064490,1.60002395,2588.4,2588.1,0.07621162]
[1646922065739,1.60002395,2588.4,2588.1,0.07891036]
[1646922066141,2.60002395,2588.4,2588.1,0.07891036]
[1646922066340,1.60002395,2588.3,2588.1,0.07891036]
[1646922066541,1.60002395,2588.3,2588.1,0.00269874]
[1646922066744,1.60002395,2588.3,2588.0,0.96673]
[1646922066947,1.60002395,2588.3,2588.1,0.00269874]
[1646922067347,1.60002395,2588.2,2588.1,0.00269874]
[1646922067547,1.04411777,2588.7,2588.1,0.00269874]
[1646922067749,1.59990937,2588.6,2588.1,0.00269874]
[1646922067947,1.59990937,2588.6,2588.0,0.96673]
[1646922068147,1.59990937,2588.6,2588.2,1.0352201]
[1646922068346,1.207,2588.8,2588.3,0.07581171]
[1646922068347,1.59990937,2588.5,2588.3,0.07581171]
[1646922068546,1.207,2588.8,2588.3,0.07581171]
[1646922068746,1.59983912,2588.7,2588.3,0.07581171]
[1646922068947,1.59983912,2588.6,2588.3,0.07581171]
[1646922069188,0.89268382,2588.9,2588.3,0.07581171]
[1646922069390,1.59980338,2588.8,2588.4,0.00236897]
[1646922070391,1.59980338,2588.8,2588.3,0.07581171]
[1646922070588,2.59980338,2588.8,2588.5,0.00236893]
[1646922070791,1.59980338,2588.7,2588.5,0.00236893]
[1646922071396,1.59980338,2588.7,2588.3,2.00893171]
[1646922071595,1.59980338,2588.7,2588.3,2.97548171]
[1646922071796,5.03448655,2588.7,2588.5,0.00243631]
[1646922071994,3.22954033,2588.6,2588.5,0.00243631]
[1646922072394,4.22954033,2588.6,2588.5,0.00243631]
[1646922072594,4.22954033,2588.6,2588.3,1.93312]
[1646922072840,2.69377761,2588.5,2588.3,1.93312]
[1646922073042,1.59980338,2588.4,2588.3,1.93312]
[1646922074039,1.59980338,2588.5,2588.3,1.93312]
[1646922074945,2.59980338,2588.5,2588.3,1.93312]
[1646922075141,1.59980338,2588.4,2588.3,1.93312]
[1646922075342,1.59980338,2588.4,2588.3,1.93554742]
[1646922075650,1.59980338,2588.4,2588.3,0.22923321]
[1646922076244,1.59980338,2588.4,2588.3,0.22680579]
[1646922077188,2.59980338,2588.4,2588.3,0.22680579]
[1646922077789,3.69501899,2588.4,2588.3,0.22680579]
[1646922078591,5.04940899,2588.4,2587.8,1.93377]
[1646922078792,1.59980338,2588.3,2587.8,1.93377]
[1646922078992,1.0,2587.9,2587.8,1.93377]
[1646922079393,2.59979712,2587.9,2587.5,0.07314744]
[1646922079592,1.0,2587.9,2587.5,0.07314744]
[1646922080434,1.01241752,2588.2,2587.5,0.07314744]
[1646922080633,1.0,2587.9,2587.5,0.07314744]
[1646922081242,1.0,2587.9,2587.5,0.94453743]
[1646922081443,1.0,2587.9,2587.5,0.87138999]
[1646922081642,2.2291,2588.3,2587.6,0.07785329]
[1646922081842,2.59976472,2588.2,2587.6,0.07785329]
[1646922082041,1.59976472,2588.1,2587.6,0.07785329]
[1646922082642,1.59976472,2588.1,2587.8,0.00296405]
[1646922082845,1.59976472,2588.1,2587.8,0.08246863]
[1646922083247,1.0,2588.2,2587.8,0.07608999]
[1646922083550,1.59973911,2588.1,2587.8,0.07608999]
[1646922083953,1.0,2588.2,2587.8,0.07608999]
[1646922084199,1.59972753,2588.1,2587.8,0.07608999]
[1646922084599,1.2291,2588.3,2587.8,0.07608999]
[1646922084800,0.2427563,2588.5,2587.8,0.07608999]
[1646922085005,0.193,2588.6,2587.8,0.07608999]
[1646922085202,1.0,2588.5,2587.8,0.07608999]
[1646922085402,0.193,2588.6,2587.8,0.07608999]
[1646922085604,1.0,2588.4,2587.8,0.07608999]
[1646922086604,1.0,2588.4,2587.9,0.88691817]
[1646922087104,1.3875,2588.4,2587.9,0.96667]
[1646922087304,1.3875,2588.4,2587.8,0.07608999]
[1646922087504,1.0,2588.3,2587.8,0.07608999]
[1646922088143,1.0,2588.1,2587.8,0.07608999]
[1646922089743,1.0,2588.1,2587.7,0.3]
[1646922089944,1.0,2588.1,2587.7,0.37764489]
[1646922090745,1.0,2588.1,2587.7,0.37468814]
[1646922090945,1.0,2588.1,2587.7,0.07764489]
[1646922091145,1.3875,2588.1,2587.7,0.00295675]
[1646922091351,1.0,2588.1,2587.7,0.00295675]
[1646922091784,1.0,2588.1,2587.7,0.0778989]
[1646922091985,1.0,2588.1,2587.7,0.07494215]
[1646922092185,1.0,2588.1,2587.7,0.07760323]
[1646922092589,1.0,2588.1,2587.7,0.37760323]
[1646922092788,0.19528404,2588.6,2587.7,0.37760323]
[1646922092991,1.89811008,2588.7,2587.7,2.78970714]
[1646922093190,0.89602604,2588.7,2587.9,0.07102959]
[1646922093392,0.3875,2588.5,2587.9,1.03774959]
[1646922093591,2.52930692,2588.5,2588.0,2.31369192]
[1646922093790,2.52930692,2588.5,2588.0,3.28044192]
[1646922093994,1.0,2588.3,2588.0,3.28044192]
[1646922094393,1.3875,2588.3,2588.0,3.28044192]
[1646922094594,1.0,2588.1,2588.0,3.28044192]
[1646922095834,1.0,2588.1,2588.0,1.57422674]
[1646922098736,0.154545,2588.2,2588.0,1.57422674]
[1646922098938,0.62488458,2588.4,2588.0,1.57422674]
[1646922099191,1.43188458,2588.4,2588.0,1.57422674]
[1646922100089,1.13491062,2588.4,2588.0,1.57422674]
[1646922100289,1.0,2588.2,2588.0,1.57422674]
[1646922101391,1.70302604,2588.2,2588.0,1.57422674]
[1646922102941,0.70302604,2588.1,2588.0,1.57422674]
[1646922103941,0.70302604,2588.1,2588.0,0.96675]
[1646922104540,2.30260984,2588.1,2588.0,0.96675]
[1646922105241,1.5995838,2588.1,2588.0,0.96675]
[1646922105441,2.5995838,2588.1,2588.0,0.96675]
[1646922105640,3.303181,2588.1,2588.0,0.96675]
[1646922105840,2.5995838,2588.1,2588.0,0.96675]
[1646922107485,3.17812748,2588.1,2588.0,0.96675]
[1646922108290,0.7035972,2588.2,2588.0,0.96675]
[1646922108491,0.7035972,2588.3,2588.1,0.0732854]
[1646922108890,0.94420487,2588.6,2588.1,0.0732854]
[1646922109391,2.7237121,2588.8,2588.3,1.20496015]
[1646922109392,0.94420487,2588.7,2588.3,1.20496015]
[1646922109596,1.51613293,2588.8,2588.3,1.20496015]
[1646922109790,0.94420487,2588.8,2588.3,1.20496015]
[1646922110090,0.94420487,2588.8,2588.2,1.93296]
[1646922110345,0.94420487,2588.8,2588.2,0.96648]
[1646922110545,1.94420487,2588.8,2588.2,0.96648]
[1646922111134,0.94420487,2588.7,2588.2,0.96648]
[1646922111335,1.0,2588.7,2588.2,0.96648]
[1646922111538,1.94420487,2588.7,2588.2,0.96648]
[1646922112635,1.0,2588.7,2588.2,0.96648]
[1646922112838,0.154524,2588.8,2588.2,1.26648]
[1646922113040,0.154524,2588.8,2588.3,0.0764111]
[1646922113842,0.154524,2588.8,2588.5,1.2124121]
[1646922114088,0.154524,2588.8,2588.6,0.08247889]
[1646922115888,0.154524,2588.8,2588.4,4.83198]
[1646922116288,0.154524,2588.8,2588.4,2.89919]
[1646922116490,1.154524,2588.8,2588.4,2.89919]
[1646922116690,0.05683836,2588.7,2588.4,2.89919]
[1646922116989,1.0,2588.6,2588.3,1.93277]
[1646922118640,1.0,2588.6,2588.3,2.23277]
[1646922118840,0.73761426,2588.8,2588.3,2.23277]
[1646922119038,0.70539915,2588.7,2588.3,2.23277]
[1646922119638,0.70539915,2588.7,2588.3,3.19931]
[1646922119943,0.70539915,2588.7,2588.3,2.89931]
[1646922120338,0.70539915,2588.6,2588.3,2.89931]
[1646922121339,0.70539915,2588.5,2588.3,2.89931]
[1646922124303,0.70539915,2588.4,2588.3,2.89931]
[1646922124505,0.70539915,2588.4,2588.3,1.93277]
[1646922124706,4.49519804,2588.4,2588.3,1.93277]
[1646922124905,0.05613197,2588.3,2588.2,0.96656]
[1646922125109,0.05613197,2588.3,2588.0,1.93371]
[1646922125110,3.94363197,2588.3,2588.0,1.93371]
[1646922125357,1.00463944,2588.2,2587.7,0.00241367]
[1646922125546,1.00463944,2588.2,2587.5,1.93368]
[1646922125547,0.70626174,2587.9,2587.5,1.93368]
[1646922125747,0.88807959,2587.8,2587.5,1.93368]
[1646922125945,0.88807959,2587.8,2587.7,0.00241367]
[1646922126347,1.59434133,2587.8,2587.7,0.00241367]
[1646922126746,1.59434133,2587.8,2587.5,1.93368]
[1646922126947,0.05651365,2587.7,2587.5,3.8677]
[1646922127147,0.05651365,2587.7,2587.6,0.00241372]
[1646922127950,0.05651365,2587.7,2587.5,3.8677]
[1646922128352,1.59973275,2587.6,2587.5,3.87011381]
[1646922128953,1.05809246,2587.6,2587.5,3.87011381]
[1646922129191,2.65782521,2587.6,2587.5,3.8677]
[1646922129390,2.59973275,2587.6,2587.5,3.8677]
[1646922131490,2.65095662,2587.6,2587.5,3.8677]
[1646922131691,2.59973275,2587.6,2587.5,3.8677]
[1646922131891,3.49965767,2587.6,2587.5,1.93402]
[1646922132092,3.49965767,2587.6,2587.1,0.25]
[1646922132093,52.0,2587.5,2587.1,0.25]
[1646922132293,3.5,2587.4,2586.5,10.3652]
[1646922132493,1.59973275,2587.3,2586.5,0.3866]
[1646922132696,1.0,2587.2,2586.9,1.9345]
[1646922132954,2.56708275,2587.1,2586.9,1.9345]
[1646922133153,1.59973275,2587.0,2586.9,1.9345]
[1646922133753,2.59973275,2587.0,2586.4,0.25]
[1646922133951,0.96737,2586.8,2586.4,0.25]
[1646922134150,1.59973275,2586.7,2586.3,3.86769]
[1646922134352,1.02356388,2586.6,2586.3,3.86769]
[1646922134551,1.02356388,2586.6,2586.2,2.901799]
[1646922134552,1.59973275,2586.5,2586.2,2.901799]
[1646922134753,1.59973275,2586.5,2586.2,1.93473]
[1646922135151,2.59973275,2586.5,2586.2,1.93473]
[1646922135454,1.59973275,2586.4,2586.2,1.93767033]
[1646922135650,1.0,2586.5,2586.2,1.93767033]
[1646922135851,1.02356388,2586.6,2586.2,0.00294033]
[1646922136050,1.60025001,2586.5,2586.2,0.00294033]
[1646922136259,13.2175,2586.3,2586.2,0.00294033]
[1646922136454,13.2175,2586.3,2585.7,0.25]
[1646922136455,1.20715342,2585.9,2585.7,0.25]
[1646922136694,1.20715342,2585.9,2585.2,2.47143702]
[1646922136994,1.20715342,2585.9,2585.2,2.27813702]
[1646922136995,0.9077045,2585.6,2585.2,2.27813702]
[1646922137695,0.9679,2585.5,2585.3,0.5]
[1646922138297,1.0,2585.4,2585.3,0.5]
[1646922138500,0.95678838,2585.1,2584.8,0.25]
[1646922138698,1.0,2585.4,2584.6,0.27354426]
[1646922139100,3.5,2585.3,2584.4,0.1933]
[1646922139299,4.5,2585.3,2584.4,0.1933]
[1646922139500,5.46804,2585.3,2584.3,2.50231928]
[1646922139699,5.46804,2585.3,2584.3,2.00231928]
[1646922140102,1.23299229,2585.0,2584.3,2.00231928]
[1646922140353,1.0,2584.8,2584.7,0.00293474]
[1646922141343,1.0,2584.8,2584.5,0.968]
[1646922141544,1.0,2584.8,2584.6,0.00293479]
[1646922142341,0.04937644,2584.7,2584.6,0.00293479]
[1646922142540,0.04937644,2584.7,2584.5,0.96804]
[1646922142742,0.04937644,2584.7,2584.6,0.00293485]
[1646922143349,1.0,2584.8,2584.6,0.00293485]
[1646922143749,0.05907604,2585.3,2584.5,1.26804]
[1646922143946,0.05907604,2585.3,2584.5,1.27097491]
[1646922144394,0.05907604,2585.3,2585.1,1.93548]
[1646922145192,0.05907604,2585.3,2585.1,1.93808418]
[1646922145397,0.05907604,2585.3,2585.1,0.00260418]
[1646922145398,1.02699604,2585.3,2585.1,0.00260418]
[1646922145599,0.05665429,2585.2,2585.1,0.00260418]
[1646922145798,3.74995429,2585.2,2585.1,0.00260418]
[1646922146001,4.74995429,2585.2,2585.1,0.00260418]
[1646922146399,18.95572042,2585.2,2584.9,0.9678]
[1646922146597,18.95572042,2585.2,2584.7,1.9356]
[1646922146598,1.41703807,2585.1,2585.0,0.00260423]
[1646922146797,1.35555,2585.1,2585.0,0.97067423]
[1646922146997,1.54885,2585.1,2585.0,0.00260423]
[1646922147196,13.37885,2585.1,2584.7,1.9356]
[1646922147600,14.37885,2585.1,2584.9,0.00260433]
[1646922147866,101.4108,2585.0,2583.8,3.09742]
[1646922148057,101.4108,2585.0,2583.5,0.07147397]
[1646922148058,101.4108,2585.0,2583.4,3.21707854]
[1646922148060,3.0,2584.4,2583.4,3.21707854]
[1646922148254,15.7175,2584.3,2583.4,2.71526967]
[1646922148455,15.7175,2584.3,2583.4,1.0]
[1646922148456,0.1935,2584.2,2583.4,1.0]
[1646922148657,0.1935,2584.2,2582.9,0.4435]
[1646922148854,1.3562063,2583.8,2582.7,0.1935]
[1646922149057,0.3875,2583.6,2582.5,0.1935]
[1646922149256,1.0,2583.3,2582.4,1.0]
[1646922149455,1.3875,2583.3,2582.4,1.0]
[1646922149856,1.3875,2583.3,2583.0,0.5]
[1646922149857,3.5,2583.2,2583.0,0.5]
[1646922150055,1.9381545,2583.1,2582.4,1.0]
[1646922150257,0.9691217,2582.8,2582.4,1.0]
[1646922150459,0.96911,2582.7,2582.4,1.0]
[1646922150657,2.15047337,2582.7,2582.4,1.0]
[1646922150857,2.15047337,2582.7,2581.7,0.25]
[1646922151058,1.0,2582.5,2582.0,1.0]
[1646922151699,1.96911,2582.7,2582.0,1.0]
[1646922151907,1.46225,2583.0,2582.1,3.5]
[1646922152107,0.3,2583.0,2582.4,0.9687]
[1646922152304,0.1935,2583.5,2582.0,1.0]
[1646922152501,0.1935,2583.5,2581.7,0.25]
[1646922152502,1.0,2582.7,2582.1,0.0029246]
[1646922152901,2.10963498,2582.7,2582.1,0.0029246]
[1646922153303,2.10963498,2582.7,2582.0,3.2066]
[1646922153505,2.10963498,2582.7,2582.0,2.23771]
[1646922153705,0.96897,2582.7,2582.3,0.00292443]
[1646922153911,0.1935,2583.1,2582.3,0.00292443]
[1646922153912,1.0,2582.4,2582.3,0.00292443]
[1646922154506,1.0,2582.4,2581.7,1.3401563]
[1646922154709,1.0,2582.4,2582.2,0.00292448]
[1646922154905,0.96896,2582.5,2582.2,0.00292448]
[1646922155757,1.0,2582.2,2582.0,1.93783]
[1646922156356,1.0,2582.2,2582.0,0.22816139]
[1646922156759,1.0,2582.2,2581.8,0.98060969]
[1646922156760,3.5,2582.1,2581.8,0.01169969]
[1646922156958,0.1935,2582.1,2581.1,0.25]
[1646922157158,1.0,2582.1,2581.1,0.25]
[1646922157359,3.5614967,2582.0,2581.6,0.01170083]
[1646922157558,1.21818816,2581.9,2581.6,0.01170083]
[1646922157759,0.05359858,2581.8,2581.6,0.01170083]
[1646922158159,0.05359858,2581.8,2581.0,1.13178862]
[1646922158360,0.05359858,2581.8,2581.6,0.00292516]
[1646922158966,1.0,2581.7,2581.6,0.00292516]
[1646922159393,0.05892876,2581.6,2581.2,0.96923]
[1646922159600,0.05892876,2581.6,2581.2,0.98093264]
[1646922159800,0.05892876,2581.6,2581.2,0.01170264]
[1646922160406,0.05892876,2581.6,2580.9,1.93852]
[1646922160601,1.0,2581.2,2580.9,1.93852]
[1646922160804,1.0,2581.2,2580.9,1.9489073]
[1646922161001,1.05901181,2581.2,2580.9,1.9489073]
[1646922161805,1.05901181,2581.2,2580.9,1.93852]
[1646922162003,1.05901181,2581.2,2580.9,1.94111679]
[1646922162004,1.0,2581.2,2580.9,1.94111679]
[1646922162203,0.3,2582.0,2580.9,2.52231679]
[1646922162204,0.05123696,2582.0,2580.9,2.52231679]
[1646922162402,0.05123696,2582.0,2580.9,0.00259679]
[1646922162602,1.0,2581.6,2580.9,0.00259679]
[1646922162855,0.1936,2581.9,2580.4,0.25]
[1646922162856,0.3875,2581.8,2580.4,0.25]
[1646922163053,0.252118,2581.7,2580.2,0.5]
[1646922163256,0.3875,2581.5,2580.2,0.5]
[1646922163458,12.2175,2581.3,2580.2,0.5]
[1646922163657,0.3,2581.0,2580.2,0.5]
[1646922163859,1.0,2580.4,2580.2,0.5]
[1646922164758,0.06176396,2580.9,2580.2,0.5]
[1646922164958,0.06176396,2580.9,2580.1,0.96954]
[1646922165159,0.06176396,2580.9,2580.2,1.14313759]
[1646922165459,1.0,2580.8,2580.2,0.04092649]
[1646922165659,1.03131396,2580.9,2580.2,0.04092649]
[1646922165660,0.06176396,2580.9,2580.2,0.04092649]
[1646922165857,0.06176396,2580.9,2580.1,0.04149492]
[1646922166259,0.25546396,2580.9,2580.1,0.04149492]
[1646922166460,0.76863331,2580.7,2580.1,0.04149492]
[1646922166738,1.0,2580.3,2580.1,0.04149492]
[1646922166937,0.24462867,2580.6,2580.1,0.04149492]
[1646922167138,0.05092867,2580.6,2580.1,0.04149492]
[1646922167338,1.0,2580.2,2580.1,0.04149492]
[1646922167535,0.06290814,2580.2,2580.1,0.04149492]
[1646922167736,0.24818531,2580.4,2580.1,0.04149492]
[1646922167939,94.7175,2580.2,2579.8,0.25]
[1646922168240,0.05846459,2579.8,2579.6,8.073e-05]
[1646922168442,12.4113,2579.7,2579.6,8.073e-05]
[1646922168638,16.9113,2579.7,2579.6,8.073e-05]
[1646922168839,18.88165,2579.7,2579.6,8.073e-05]
[1646922169240,15.18785,2579.7,2578.8,0.25998004]
[1646922169439,0.05119784,2579.6,2578.8,0.25998004]
[1646922169643,0.05119784,2579.6,2579.1,0.91459885]
[1646922169838,1.3,2580.0,2579.1,0.91459885]
[1646922169839,1.01987145,2579.9,2579.1,0.91459885]
[1646922170039,1.01987145,2579.9,2578.8,0.25998004]
[1646922170040,0.05205903,2579.8,2578.9,1.94008]
[1646922170241,0.05205903,2579.8,2579.2,0.97005]
[1646922170448,0.05892669,2580.0,2579.0,0.98059946]
[1646922170646,1.0,2579.6,2579.0,0.98059946]
[1646922170847,1.0,2579.6,2579.0,0.01061936]
[1646922171051,1.5841135,2580.2,2579.0,0.01061936]
[1646922171052,0.24578179,2580.3,2579.4,0.3875]
[1646922171248,0.02751593,2580.8,2580.1,1.05659748]
[1646922171249,0.06029948,2580.6,2580.1,1.05659748]
[1646922171454,2.81731593,2580.8,2580.1,1.05659748]
[1646922171455,0.02751593,2580.8,2580.4,1.93917]
[1646922171657,0.0436676,2581.6,2580.6,9.5]
[1646922171851,0.00274623,2581.5,2580.7,4.3485]
[1646922172052,0.00274623,2581.5,2581.3,4.8449627]
[1646922172447,0.00274623,2581.5,2581.3,6.7831027]
[1646922172648,0.05127626,2582.5,2581.3,7.1706027]
[1646922172848,0.1870052,2582.6,2581.4,0.3]
[1646922173050,0.87889231,2583.0,2581.4,2.62511]
[1646922173251,0.03955,2582.9,2582.4,1.93758]
[1646922173448,2.56541732,2582.3,2582.0,0.3875]
[1646922173649,2.56541732,2582.3,2582.2,0.86506697]
[1646922173849,2.51541732,2582.3,2582.2,0.86506697]
[1646922174092,2.51541732,2582.3,2582.2,1.83385697]
[1646922174514,2.51541732,2582.3,2582.2,0.96879]
[1646922174704,2.5612519,2582.3,2581.7,0.5]
[1646922175103,3.5612519,2582.3,2581.7,0.5]
[1646922175304,3.5612519,2582.3,2582.1,1.0]
[1646922175504,3.51541732,2582.3,2582.1,1.5]
[1646922175710,3.51541732,2582.3,2582.1,0.5]
[1646922175904,3.51541732,2582.3,2582.1,0.493615]
[1646922176303,2.51541732,2582.3,2582.0,2.07839596]
[1646922176504,2.51906016,2582.3,2582.0,0.36811417]
[1646922177304,2.51906016,2582.3,2582.0,1.33714417]
[1646922177507,2.51541732,2582.3,2582.1,0.96881]
[1646922177708,2.51912531,2582.3,2582.0,1.33714417]
[1646922177954,2.51912531,2582.3,2582.0,0.96903]
[1646922178354,3.51912531,2582.3,2582.0,0.96903]
[1646922178955,1.0,2582.2,2581.9,0.0735812]
[1646922179557,2.90662531,2582.3,2581.6,1.9381]
[1646922179756,2.90662531,2582.3,2582.0,0.96898]
[1646922179757,1.0,2582.2,2582.0,0.96898]
[1646922179958,1.0,2582.2,2582.0,1.04906214]
[1646922180161,2.51541732,2582.3,2582.1,0.08263625]
[1646922180355,0.00370803,2582.2,2582.1,0.08263625]
[1646922180656,0.00370803,2582.2,2582.1,1.08263625]
[1646922181054,2.51541732,2582.3,2582.1,3.98848625]
[1646922181257,2.51541732,2582.3,2582.1,3.90585]
[1646922181458,2.51905457,2582.3,2582.1,2.90585]
[1646922181697,2.51905457,2582.3,2582.1,3.87463]
[1646922182100,2.51905457,2582.3,2582.1,2.90585]
[1646922182706,2.51905455,2582.3,2582.1,2.90585]
[1646922182903,2.51905455,2582.3,2582.0,0.96898]
[1646922183401,2.51541732,2582.3,2582.0,0.96898]
[1646922183801,2.51905457,2582.3,2582.0,0.96898]
[1646922184301,2.51905457,2582.3,2582.0,1.9377079]
[1646922184802,2.51905457,2582.3,2582.0,0.96898]
[1646922185003,2.51905457,2582.3,2581.3,0.19393037]
[1646922185004,0.04950416,2582.2,2581.4,1.9378676]
[1646922185209,1.0,2582.2,2581.6,0.9689677]
[1646922185656,0.93523296,2582.1,2581.6,0.9689677]
[1646922185854,2.51541732,2582.3,2581.6,0.9689677]
[1646922186054,2.51541732,2582.3,2581.4,1.9378676]
[1646922186055,0.00280329,2582.0,2581.4,1.9378676]
[1646922186555,0.00280329,2582.0,2581.3,0.4936]
[1646922186955,1.00280329,2582.0,2581.3,0.4936]
[1646922187156,0.3875,2582.0,2581.3,0.4936]
[1646922187358,0.04159319,2581.9,2581.3,0.4936]
[1646922187560,0.08114319,2581.9,2581.3,0.4936]
[1646922187764,0.04707334,2581.3,2581.1,1.0]
[1646922187962,0.03953,2581.2,2580.8,0.25]
[1646922188357,0.03953,2581.2,2579.9,0.969578]
[1646922188559,0.03953,2581.2,2580.0,1.0]
[1646922188758,0.3875,2581.1,2580.0,1.00286956]
[1646922188960,0.04793364,2580.5,2580.0,1.00286956]
[1646922189205,0.05153027,2580.9,2580.0,1.00286956]
[1646922189404,0.05153027,2580.9,2580.2,0.5]
[1646922189607,0.03953,2581.1,2580.2,0.5]
[1646922189807,0.08478444,2581.1,2580.2,0.5]
[1646922190004,1.0,2580.5,2580.3,0.9695]
[1646922191007,1.0,2580.5,2580.0,1.94190956]
[1646922191209,1.0,2580.5,2580.1,4.46955]
[1646922191407,2.0086019,2581.3,2580.2,0.9693971]
[1646922191408,0.6211019,2581.3,2580.2,0.9693971]
[1646922191605,0.6211019,2581.3,2580.2,0.3]
[1646922191606,1.0,2580.9,2580.2,0.3]
[1646922191807,1.0,2580.9,2580.0,0.00286956]
[1646922192009,0.96964,2580.8,2579.6,3.15842]
[1646922192211,1.23057646,2580.6,2580.0,0.00286956]
[1646922192607,1.0,2580.4,2580.0,0.00286956]
[1646922192847,1.23057646,2580.6,2580.0,0.00286956]
[1646922193053,1.23057646,2580.6,2579.6,7.57]
[1646922193054,1.0,2580.2,2579.6,7.57]
[1646922193252,1.0,2580.2,2579.5,0.96978]
[1646922193449,0.96981,2580.4,2579.5,0.96978]
[1646922193450,0.96981,2580.4,2580.0,0.00286238]
[1646922193649,1.0,2580.1,2580.0,0.00286238]
[1646922193851,0.96981,2580.4,2580.0,0.00286238]
[1646922193852,0.01853635,2580.4,2580.0,0.00286238]
[1646922194250,1.0,2580.1,2579.5,0.01145181]
[1646922194451,0.3875,2580.3,2579.5,0.9698]
[1646922194652,1.0,2580.0,2579.5,0.9698]
[1646922194851,1.0,2580.0,2579.4,0.04647269]
[1646922195456,1.0,2579.7,2579.4,0.04647269]
[1646922195660,1.0,2579.7,2579.3,1.93953]
[1646922195852,1.0,2579.7,2579.2,0.96989]
[1646922196052,1.0,2579.7,2579.1,2.97392984]
[1646922196453,1.0,2579.7,2579.2,0.9697972]
[1646922196702,1.0,2579.7,2579.1,0.96977]
[1646922196903,1.0,2579.7,2579.0,1.51061936]
[1646922197202,1.0,2579.7,2579.3,0.00286322]
[1646922197401,12.7998148,2580.7,2579.4,62.0]
[1646922197603,3.91582174,2581.0,2579.9,1.93916]
[1646922197604,0.6875,2581.0,2579.9,1.93916]
[1646922197806,0.6875,2581.0,2580.1,0.92576487]
[1646922197807,1.60448946,2580.9,2580.1,0.92576487]
[1646922198005,0.56843328,2581.3,2580.1,0.92576487]
[1646922198210,0.56843328,2581.3,2580.2,0.08921505]
[1646922198211,1.60422732,2581.2,2580.2,0.08921505]
[1646922198406,1.60422732,2581.2,2580.2,0.55021505]
[1646922198608,1.60422732,2581.2,2580.3,0.07326645]
[1646922198805,1.99172732,2581.2,2580.3,1.04264305]
[1646922199007,1.65502204,2581.1,2580.0,0.461]
[1646922199307,1.65502204,2581.1,2579.9,0.0028625]
[1646922199308,0.0512165,2580.9,2579.9,0.0028625]
[1646922199508,0.0512165,2580.9,2580.0,0.0028624]
[1646922199509,1.0,2580.5,2580.0,0.0028624]
[1646922199910,1.64790442,2580.4,2580.0,0.0028624]
[1646922200109,0.04178074,2580.2,2580.0,0.0028624]
[1646922200755,0.04796752,2580.2,2580.0,0.0028624]
[1646922201051,1.88737178,2580.3,2580.0,0.0028624]
[1646922201052,3.35443198,2581.2,2580.0,0.0028624]
[1646922201251,1.60444748,2581.1,2580.1,0.03939]
[1646922201754,0.3875,2581.0,2579.9,0.03939]
[1646922201954,1.60444748,2580.9,2580.1,1.14831456]
[1646922202256,0.04814468,2581.5,2580.7,0.07423569]
[1646922202455,1.60408751,2581.4,2580.7,0.07423569]
[1646922202657,3.22167906,2582.3,2580.8,50.8485]
[1646922202956,2.51541732,2582.3,2581.3,1.0]
[1646922203153,3.73827693,2582.3,2581.9,0.5]
[1646922203356,3.73827693,2582.3,2582.0,0.07813004]
[1646922203553,3.73827693,2582.3,2582.0,0.96893]
[1646922204394,3.74114504,2582.3,2582.0,0.96893]
[1646922204996,2.51828543,2582.3,2582.0,0.96893]
[1646922205196,3.51828543,2582.3,2582.0,0.96893]
[1646922205396,3.52201151,2582.3,2582.0,0.96893]
[1646922205595,3.5191434,2582.3,2582.0,0.96893]
[1646922206500,3.51541732,2582.3,2582.0,0.96893]
[1646922206797,3.51903584,2582.3,2582.0,0.96893]
[1646922207599,3.51541732,2582.3,2582.0,0.96893]
[1646922207850,3.51903584,2582.3,2582.0,0.96893]
[1646922208654,3.51903584,2582.3,2582.0,0.91893]
[1646922208851,0.01633157,2582.2,2582.0,0.91893]
[1646922209050,0.01633157,2582.2,2581.8,2.00783805]
[1646922209250,1.0,2582.1,2581.8,2.00783805]
[1646922209955,1.0,2582.1,2581.8,2.97684545]
[1646922210156,1.0,2582.1,2582.0,0.07883999]
[1646922210355,1.00372426,2582.1,2582.0,0.07883999]
[1646922210555,0.00372426,2582.1,2582.0,0.07883999]
[1646922211157,0.01633157,2582.2,2582.0,0.07883999]
[1646922211610,0.0200558,2582.2,2582.0,0.07883999]